bitfinex/quotes_SOLUSD_20251009
["timestamp","ask_amount","ask_price","bid_price","bid_amount"]
[1759997223926,40.21055267,223.88,223.87,5.1]
[1759997224403,36.88667857,223.88,223.87,5.1]
[1759997224603,40.21055267,223.88,223.87,5.1]
[1759997225015,8.41055267,223.88,223.87,5.1]
[1759997225326,40.21055267,223.88,223.87,5.1]
[1759997226835,3.3238741,223.88,223.87,5.1]
[1759997227040,35.1638741,223.88,223.87,5.1]
[1759997227617,0.62,223.95,223.87,5.8]
[1759997227820,3.3238741,223.89,223.87,5.1]
[1759997228016,23.54,223.88,223.87,5.1]
[1759997228633,4.46491883,223.97,223.87,5.8]
[1759997228835,3.3238741,223.93,223.89,4.46647907]
[1759997229003,3.3238741,223.93,223.89,0.7]
[1759997229207,16.84085603,223.96,223.87,15.36677339]
[1759997229208,11.75575238,223.96,223.9,0.7]
[1759997229405,35.2638741,223.95,223.9,0.7]
[1759997229640,35.2638741,223.95,223.91,0.7]
[1759997229932,11.75575238,223.96,223.92,0.7]
[1759997230101,31.96,223.95,223.92,0.7]
[1759997230306,31.96,223.95,223.93,0.7]
[1759997230607,35.2838741,223.95,223.9,0.7]
[1759997230820,35.2838741,223.95,223.9,5.16623498]
[1759997231023,35.2838741,223.95,223.91,0.7]
[1759997231223,35.2838741,223.95,223.92,0.7]
[1759997231420,3.3238741,223.93,223.87,5.8]
[1759997231750,3.3238741,223.93,223.88,0.7]
[1759997232040,3.3238741,223.93,223.89,0.7]
[1759997232240,3.3238741,223.93,223.87,9.56687714]
[1759997232241,3.3238741,223.93,223.9,0.7]
[1759997232606,0.5,223.91,223.9,0.7]
[1759997232810,32.5,223.91,223.9,0.7]
[1759997233035,35.8238741,223.91,223.87,5.1]
[1759997233330,3.3238741,223.89,223.87,5.1]
[1759997234630,0.5,223.91,223.88,0.7]
[1759997234846,32.0,223.9,223.89,0.7]
[1759997235133,0.5,223.91,223.89,0.7]
[1759997235316,32.5,223.91,223.9,0.7]
[1759997235635,32.5,223.91,223.87,9.7668368]
[1759997235822,32.5,223.91,223.88,0.7]
[1759997236217,32.5,223.91,223.89,0.7]
[1759997236422,32.5,223.91,223.9,0.7]
[1759997236750,43.73575238,223.96,223.9,0.7]
[1759997236918,43.73575238,223.96,223.93,4.46568123]
[1759997237117,43.73575238,223.96,223.94,0.7]
[1759997237319,43.73575238,223.96,223.95,0.7]
[1759997237638,11.75575238,223.96,223.95,0.7]
[1759997238645,32.0,223.99,223.95,0.7]
[1759997238810,140.01822022,224.04,223.95,0.7]
[1759997239015,31.98,224.03,223.97,15.6270929]
[1759997239217,31.98,224.03,223.98,0.7]
[1759997239522,31.98,224.03,223.99,0.7]
[1759997239723,5.21822022,224.03,223.87,24.59999999]
[1759997239928,5.21822022,223.99,223.91,5.21822022]
[1759997240246,31.98,223.98,223.92,0.7]
[1759997240543,5.21822022,223.95,223.89,0.7]
[1759997240715,32.02,223.94,223.89,0.7]
[1759997240921,32.02,223.94,223.9,0.7]
[1759997241111,32.02,223.94,223.91,4.46608012]
[1759997241317,32.02,223.94,223.92,0.7]
[1759997241517,32.02,223.97,223.93,0.7]
[1759997241820,32.02,223.97,223.94,0.7]
[1759997242021,32.02,223.97,223.95,0.7]
[1759997242540,32.02,223.97,223.95,5.16509849]
[1759997242742,5.21822022,224.0,223.96,0.7]
[1759997242941,32.02,223.98,223.95,4.46509849]
[1759997243146,32.02,223.98,223.96,0.7]
[1759997243721,32.02,223.98,223.97,0.7]
[1759997244143,32.02,223.98,223.97,5.16488368]
[1759997245031,32.02,223.98,223.97,0.7]
[1759997245555,37.23822022,223.98,223.9,10.87647521]
[1759997245722,5.21822022,223.96,223.92,0.7]
[1759997245917,32.02,223.98,223.91,15.63128042]
[1759997246143,5.21822022,223.97,223.93,5.1656238]
[1759997246455,5.21822022,223.95,223.88,15.63325525]
[1759997246661,32.0,223.94,223.89,0.7]
[1759997246944,5.21822022,223.97,223.89,0.7]
[1759997246945,32.0,223.95,223.89,0.7]
[1759997247129,32.0,223.95,223.9,0.7]
[1759997247540,32.0,223.95,223.91,5.21822022]
[1759997247737,32.0,223.95,223.92,0.7]
[1759997248038,32.0,223.95,223.93,0.7]
[1759997248243,31.98,223.98,223.94,5.16548182]
[1759997248459,19.99999999,224.13,223.95,5.91822022]
[1759997248460,5.21822022,224.04,223.95,5.91822022]
[1759997248745,32.0,224.03,223.96,0.7]
[1759997249127,37.21822022,224.03,223.96,0.7]
[1759997249865,32.0,224.03,223.97,4.46488368]
[1759997250837,32.0,224.03,223.97,15.6270929]
[1759997251032,5.21822022,224.04,223.97,15.6270929]
[1759997251033,5.21822022,224.06,223.98,0.7]
[1759997251238,31.98,224.05,223.99,16.09469543]
[1759997251842,31.98,224.05,224.0,4.46428571]
[1759997252144,31.98,224.05,224.0,5.16428571]
[1759997252320,31.98,224.05,223.96,4.46508305]
[1759997252321,5.21822022,224.02,223.96,4.46508305]
[1759997252522,5.21822022,224.0,223.96,4.46508305]
[1759997252735,31.98,224.01,223.97,0.7]
[1759997252924,31.98,224.01,223.96,15.62779067]
[1759997253251,31.98,224.01,223.96,4.46508305]
[1759997253451,31.98,224.01,223.96,5.16508305]
[1759997253619,31.98,224.01,223.97,0.7]
[1759997253823,31.98,224.01,223.98,4.46468434]
[1759997254733,31.98,224.01,223.97,5.16487594]
[1759997254933,31.98,224.01,223.97,4.46487594]
[1759997255335,31.98,224.01,223.97,5.16487594]
[1759997255545,5.21822022,224.04,223.98,0.7]
[1759997255730,11.15607983,224.1,223.98,0.7]
[1759997255731,5.21822022,224.08,223.98,5.91822022]
[1759997255939,31.98,224.05,223.99,16.34569757]
[1759997256760,31.98,224.05,223.99,5.18448502]
[1759997257635,32.6,224.05,223.99,4.46448502]
[1759997257837,5.21822022,224.04,223.99,4.46448502]
[1759997258135,31.98,224.05,224.0,5.93822022]
[1759997258338,37.17822022,224.08,224.01,0.72]
[1759997259246,37.17822022,224.08,224.01,5.93822022]
[1759997259546,37.17822022,224.08,224.01,0.72]
[1759997260253,5.21822022,224.06,223.97,10.87647521]
[1759997260544,5.83822022,224.06,223.98,4.46468434]
[1759997260734,5.83822022,224.06,223.98,16.3463952]
[1759997261052,5.83822022,224.06,223.98,21.56461542]
[1759997261249,5.83822022,224.05,223.97,4.46486184]
[1759997261443,32.58,224.04,223.97,4.46486184]
[1759997261754,0.62,224.03,223.97,4.46486184]
[1759997261928,0.62,224.03,223.92,10.87647521]
[1759997261929,5.21822022,224.01,223.92,11.1645085]
[1759997262254,0.62,224.02,223.94,5.21822022]
[1759997262255,31.98,224.0,223.94,5.21822022]
[1759997262749,0.62,223.99,223.92,4.46586268]
[1759997262936,5.21822022,223.97,223.88,4.46649701]
[1759997263140,32.58,223.96,223.88,4.46649701]
[1759997263336,5.83822022,223.95,223.87,4.6]
[1759997263549,0.62,223.94,223.87,9.06687512]
[1759997264159,5.08561231,223.94,223.87,9.06687512]
[1759997266855,0.62,224.0,223.88,0.71]
[1759997267038,31.96,223.99,223.93,5.21822022]
[1759997267237,31.96,223.99,223.93,5.92822022]
[1759997267928,31.96,223.99,223.93,0.71]
[1759997268157,31.96,223.99,223.94,4.46548182]
[1759997268337,32.58,223.99,223.94,4.46548182]
[1759997268742,31.96,223.99,223.94,4.46548182]
[1759997269353,31.96,223.99,223.93,5.21822022]
[1759997270256,5.83822022,223.98,223.87,4.6]
[1759997270453,5.21822022,223.94,223.87,9.06687789]
[1759997270658,31.96,223.93,223.87,9.77687789]
[1759997270964,31.96,223.93,223.88,5.92822022]
[1759997271166,31.96,223.93,223.89,0.71]
[1759997271364,31.96,223.93,223.9,0.71]
[1759997272246,31.96,223.93,223.91,4.46608012]
[1759997272660,0.62,224.02,223.92,5.92822022]
[1759997272853,32.6,224.02,223.94,5.21822022]
[1759997273045,32.6,224.02,223.88,10.87647521]
[1759997273046,5.21822022,223.99,223.89,4.46637743]
[1759997273243,0.62,223.98,223.9,5.21822022]
[1759997273442,31.98,223.97,223.9,5.21822022]
[1759997274446,31.98,223.97,223.91,4.46608012]
[1759997275060,31.98,223.97,223.9,9.6844904]
[1759997275258,5.21822022,224.02,223.92,5.21822022]
[1759997275462,31.96,224.01,223.93,0.71]
[1759997275649,31.96,224.01,223.94,5.21822022]
[1759997276450,31.96,224.01,223.95,4.46528242]
[1759997276652,31.96,224.02,223.96,5.21822022]
[1759997277045,134.8,224.04,223.96,5.21822022]
[1759997277245,134.8,224.04,223.97,0.71]
[1759997277445,31.96,224.03,223.97,0.71]
[1759997278471,31.96,224.03,223.98,15.6263952]
[1759997278652,10.30119046,224.07,223.98,16.3363952]
[1759997278965,5.21822022,224.05,223.98,15.6263952]
[1759997279465,5.21822022,224.05,223.98,4.46468434]
[1759997279901,31.94,224.04,223.98,15.6263952]
[1759997280174,37.15822022,224.04,223.97,0.71]
[1759997280363,5.21822022,224.02,223.95,4.46528242]
[1759997281168,0.62,224.03,223.95,15.62848849]
[1759997282383,5.83822022,224.03,223.95,15.62848849]
[1759997282574,31.94,224.04,223.96,0.71]
[1759997282752,37.15822022,224.04,223.96,0.71]
[1759997283152,41.62174869,224.04,223.96,0.71]
[1759997283577,37.15822022,224.04,223.96,0.71]
[1759997283782,31.94,224.04,223.96,0.71]
[1759997284083,37.15822022,224.04,223.96,0.71]
[1759997284594,37.15822022,224.04,223.97,15.6270929]
[1759997284768,31.94,224.04,223.97,15.6270929]
[1759997287785,5.21822022,224.01,223.94,4.46548182]
[1759997287977,32.5,224.0,223.94,4.46548182]
[1759997288178,37.71822022,224.0,223.94,4.46548182]
[1759997288893,0.62,224.04,223.94,16.09469543]
[1759997289193,134.8,224.05,223.98,5.21822022]
[1759997289373,31.9,224.04,223.99,0.7]
[1759997289576,31.9,224.04,223.99,5.91822022]
[1759997289774,134.8,224.05,224.0,0.7]
[1759997289984,0.62,224.1,224.01,5.91822022]
[1759997290179,0.62,224.1,223.98,10.87647521]
[1759997290180,31.9,224.09,224.04,10.87647521]
[1759997290387,31.9,224.11,224.05,0.7]
[1759997290679,0.62,224.1,224.02,5.21822022]
[1759997290874,5.21822022,224.08,223.94,31.92]
[1759997291084,5.21822022,224.03,223.96,10.87647521]
[1759997291304,5.21822022,224.09,224.0,5.21822022]
[1759997291471,31.94,224.08,224.01,0.7]
[1759997291667,5.21822022,224.07,223.99,0.7]
[1759997292290,5.21822022,224.05,223.99,0.7]
[1759997292490,5.21822022,224.05,223.97,4.46488368]
[1759997292695,5.21822022,224.05,223.98,0.7]
[1759997293270,0.62,224.06,223.98,0.7]
[1759997293566,5.21822022,224.05,223.98,0.7]
[1759997294493,5.21822022,224.05,223.98,5.91822022]
[1759997294793,0.62,224.06,223.99,4.46448502]
[1759997294966,31.94,224.05,223.99,4.46448502]
[1759997295771,0.62,224.06,223.99,4.46448502]
[1759997295970,31.94,224.04,223.99,4.46448502]
[1759997296190,31.92,224.04,223.99,5.16448502]
[1759997297089,135.42,224.06,224.0,0.7]
[1759997297305,31.92,224.03,224.0,0.7]
[1759997297486,31.92,224.03,223.99,15.62569757]
[1759997297676,31.92,224.03,224.0,0.7]
[1759997298476,31.92,224.03,223.99,15.62569757]
[1759997298693,31.92,224.03,224.0,0.7]
[1759997298892,31.92,224.03,223.99,4.46448502]
[1759997299195,0.62,224.02,223.95,5.16528242]
[1759997299499,134.8,224.06,223.95,19.64538316]
[1759997299500,3.31689467,224.04,223.95,19.64538316]
[1759997299797,31.9,224.03,223.95,18.94538316]
[1759997299995,31.9,224.03,223.96,0.7]
[1759997300293,3.31689467,224.0,223.92,4.4658639]
[1759997300497,3.93689467,224.0,223.92,4.4658639]
[1759997300680,0.62,224.0,223.92,8.48275857]
[1759997300885,135.42,224.02,223.93,4.01689467]
[1759997301088,31.92,224.01,223.95,7.78217709]
[1759997301399,3.93689467,224.0,223.93,4.46549086]
[1759997301898,3.31689467,223.96,223.88,0.7]
[1759997302081,31.94,223.95,223.88,0.7]
[1759997303202,31.94,223.95,223.88,16.33337501]
[1759997303399,31.94,223.95,223.91,3.31689467]
[1759997303697,31.94,223.95,223.92,0.7]
[1759997304076,31.94,223.95,223.93,0.7]
[1759997304604,31.94,223.95,223.91,0.7]
[1759997304918,143.20089708,224.02,223.93,3.31689467]
[1759997305208,36.38412013,224.01,223.94,5.16548182]
[1759997305500,31.92,224.0,223.94,16.32918638]
[1759997306518,31.92,224.0,223.94,5.16548182]
[1759997308824,31.92,224.0,223.94,4.46548182]
[1759997309538,0.62,223.99,223.89,10.87647521]
[1759997309725,47.54500759,224.0,223.89,0.7]
[1759997309726,3.31689467,223.94,223.89,0.7]
[1759997310029,31.92,223.93,223.9,0.7]
[1759997310199,31.92,223.92,223.9,0.7]
[1759997310713,32.54,223.92,223.87,4.6]
[1759997311030,33.26865957,223.92,223.87,4.6]
[1759997311327,0.62,223.91,223.87,4.6]
[1759997311498,5.0862608,223.91,223.87,4.6]
[1759997311922,8.40789744,223.91,223.87,4.6]
[1759997312229,0.62,223.9,223.87,4.6]
[1759997312448,3.94163664,223.89,223.87,4.6]
[1759997312598,32.56,223.88,223.87,4.6]
[1759997312998,15.62810619,223.96,223.87,4.6]
[1759997313220,3.32163664,223.92,223.87,4.6]
[1759997313395,3.32163664,223.9,223.87,4.6]
[1759997313594,7.78831521,223.88,223.87,4.6]
[1759997313800,39.82831521,223.88,223.87,4.6]
[1759997315324,4.46667857,223.88,223.87,4.6]
[1759997315507,36.50667857,223.88,223.87,4.6]
[1759997316412,39.82831521,223.88,223.87,4.6]
[1759997322530,7.78831521,223.88,223.87,4.6]
[1759997322719,39.78831521,223.88,223.87,4.6]
[1759997323608,20.8,223.85,223.79,0.1]
[1759997323817,3.32163664,223.8,223.79,0.1]
[1759997324132,31.98,223.8,223.79,0.1]
[1759997325129,31.96,223.8,223.79,0.1]
[1759997327338,36.42827524,223.8,223.79,0.1]
[1759997328820,39.74991188,223.8,223.79,0.1]
[1759997330044,3.32163664,223.82,223.79,0.1]
[1759997330225,15.63477172,223.86,223.79,0.1]
[1759997330431,3.32163664,223.83,223.79,0.1]
[1759997330643,31.96,223.82,223.79,0.1]
[1759997331320,3.32163664,223.83,223.79,0.1]
[1759997331321,7.78936382,223.83,223.79,0.1]
[1759997331526,31.98,223.82,223.79,0.1]
[1759997331926,33.33021712,223.82,223.79,0.1]
[1759997332128,1.35021712,223.82,223.79,0.1]
[1759997332328,31.96,223.81,223.79,0.1]
[1759997332522,1.35021712,223.84,223.79,0.1]
[1759997332736,31.96,223.83,223.79,4.56844251]
[1759997333147,31.96,223.83,223.79,0.1]
[1759997333331,1.35021712,223.82,223.79,0.1]
[1759997333524,31.94,223.81,223.79,0.1]
[1759997333943,1.35021712,223.8,223.79,0.1]
[1759997334830,5.81849236,223.8,223.79,0.1]
[1759997337350,4.46827524,223.8,223.79,0.1]
[1759997337546,5.81849236,223.8,223.79,0.1]
[1759997338242,20.8,223.77,223.65,2.75379628]
[1759997338444,1.35021712,223.7,223.65,2.75379628]
[1759997338650,31.98,223.69,223.65,2.75379628]
[1759997338958,31.98,223.68,223.65,2.75379628]
[1759997339158,33.33021712,223.68,223.65,2.75379628]
[1759997339355,31.98,223.68,223.65,2.75379628]
[1759997339555,1.35021712,223.67,223.65,2.75379628]
[1759997339860,3.32897072,223.67,223.65,2.75379628]
[1759997340231,35.32897072,223.66,223.65,2.75379628]
[1759997341869,3.32897072,223.73,223.65,2.75379628]
[1759997342165,20.8,223.69,223.65,2.75379628]
[1759997342474,32.04,223.68,223.65,2.75379628]
[1759997342644,3.32897072,223.67,223.65,2.75379628]
[1759997342842,36.44315723,223.74,223.65,2.75379628]
[1759997343145,3.32897072,223.7,223.65,2.75379628]
[1759997343359,3.32897072,223.68,223.65,2.75379628]
[1759997343573,36.44315723,223.74,223.65,2.75379628]
[1759997343574,3.32897072,223.66,223.65,2.75379628]
[1759997343758,35.38897072,223.66,223.65,2.75379628]
[1759997344355,7.80004288,223.66,223.65,2.75379628]
[1759997344564,39.86004288,223.66,223.65,2.75379628]
[1759997344861,35.38897072,223.66,223.65,2.75379628]
[1759997345069,32.06,223.66,223.65,2.75379628]
[1759997345474,4.47045629,223.7,223.65,2.75379628]
[1759997345781,3.32897072,223.67,223.65,2.75379628]
[1759997346077,32.04,223.66,223.65,2.75379628]
[1759997346648,31.97440507,223.73,223.65,2.75379628]
[1759997346850,3.32897072,223.68,223.65,2.75379628]
[1759997347051,32.04,223.67,223.65,2.75379628]
[1759997347249,20.8,223.73,223.65,2.75379628]
[1759997347576,3.32897072,223.7,223.65,2.75379628]
[1759997347775,3.32897072,223.68,223.65,2.75379628]
[1759997347988,32.06,223.67,223.65,2.75379628]
[1759997348152,4.46970277,223.73,223.65,2.75379628]
[1759997348361,3.32897072,223.7,223.65,2.75379628]
[1759997348569,32.06,223.69,223.65,7.22502255]
[1759997349270,32.06,223.69,223.65,2.75379628]
[1759997350169,3.32897072,223.68,223.65,2.75379628]
[1759997350373,3.32897072,223.66,223.65,2.75379628]
[1759997350575,35.44897072,223.66,223.65,2.75379628]
[1759997352274,32.12,223.66,223.65,2.75379628]
[1759997352668,3.32897072,223.68,223.65,2.75379628]
[1759997352977,32.12,223.67,223.65,2.75379628]
[1759997353183,3.32897072,223.66,223.65,2.75379628]
[1759997354166,4.47027268,223.7,223.65,2.75379628]
[1759997354365,3.32897072,223.66,223.65,2.75379628]
[1759997354580,35.60897072,223.66,223.65,2.75379628]
[1759997355378,53.1,223.66,223.65,2.75379628]
[1759997355589,56.42897072,223.66,223.65,2.75379628]
[1759997355902,20.8,223.66,223.65,2.75379628]
[1759997356073,24.12897072,223.66,223.65,2.75379628]
[1759997356403,40.10004288,223.66,223.65,2.75379628]
[1759997357872,42.00306993,223.66,223.65,2.75379628]
[1759997359454,62.80306993,223.66,223.65,2.75379628]
[1759997359858,30.50306993,223.66,223.65,2.75379628]
[1759997360054,22.34914035,223.73,223.65,2.75379628]
[1759997360255,5.23199777,223.71,223.65,2.75379628]
[1759997360478,5.23199777,223.72,223.65,2.75379628]
[1759997360660,32.3,223.71,223.65,2.75379628]
[1759997361066,0.5,223.7,223.65,2.75379628]
[1759997361269,5.23199777,223.69,223.65,2.75379628]
[1759997361472,32.32,223.68,223.65,2.75379628]
[1759997362287,32.32,223.67,223.65,2.75379628]
[1759997362466,38.90317825,223.67,223.65,2.75379628]
[1759997363587,36.79100197,223.67,223.65,2.75379628]
[1759997363887,38.90317825,223.67,223.65,2.75379628]
[1759997364690,32.32,223.67,223.65,2.75379628]
[1759997365674,25.77043438,223.7,223.65,2.75379628]
[1759997365878,32.28,223.69,223.65,2.75379628]
[1759997366183,32.28,223.68,223.65,9.33720658]
[1759997366382,32.28,223.67,223.65,9.33720658]
[1759997366695,32.28,223.67,223.65,4.86597256]
[1759997366865,32.28,223.67,223.65,2.75379628]
[1759997367066,32.28,223.67,223.65,7.22498568]
[1759997367270,32.28,223.67,223.65,2.75379628]
[1759997369072,32.28,223.67,223.65,7.22502917]
[1759997369278,32.28,223.67,223.65,2.75379628]
[1759997369480,4.47027784,223.7,223.65,2.75379628]
[1759997369687,32.26,223.69,223.65,2.75379628]
[1759997369885,32.26,223.69,223.65,7.22506022]
[1759997370082,6.58226751,223.71,223.65,2.75379628]
[1759997370286,2.11217628,223.69,223.66,0.67]
[1759997370697,2.11217628,223.67,223.65,2.75379628]
[1759997370999,38.82324844,223.66,223.65,2.75379628]
[1759997371297,38.84324844,223.66,223.65,2.75379628]
[1759997371798,6.58324844,223.66,223.65,2.75379628]
[1759997372102,39.44324844,223.66,223.65,2.75379628]
[1759997373589,39.44324844,223.66,223.65,1e-08]
[1759997373773,41.55542472,223.66,223.64,1e-08]
[1759997374482,32.26,223.65,223.64,1e-08]
[1759997374686,35.21572285,223.65,223.64,1e-08]
[1759997374883,35.83572285,223.65,223.64,1e-08]
[1759997375196,35.85572285,223.65,223.64,1e-08]
[1759997375388,37.96789913,223.65,223.64,1e-08]
[1759997375584,37.96789913,223.65,223.45,11.18791242]
[1759997375585,4.47207191,223.61,223.51,0.67]
[1759997375782,2.11217628,223.55,223.51,0.67]
[1759997375986,32.28,223.54,223.52,0.67]
[1759997376190,0.5,223.59,223.53,0.67]
[1759997376390,2.11217628,223.56,223.53,0.67]
[1759997376593,32.28,223.55,223.53,0.67]
[1759997376794,32.28,223.57,223.53,0.67]
[1759997376991,4.47151781,223.64,223.51,2.11217628]
[1759997376992,32.3,223.56,223.51,2.11217628]
[1759997377207,32.3,223.56,223.54,0.67]
[1759997377520,32.3,223.56,223.55,0.67]
[1759997377885,32.32,223.56,223.55,0.67]
[1759997378080,2.11217628,223.61,223.55,5.14317234]
[1759997378282,32.3,223.6,223.56,0.67]
[1759997378691,20.8,223.65,223.57,2.11217628]
[1759997378692,32.32,223.59,223.57,2.11217628]
[1759997378886,32.32,223.58,223.57,2.11217628]
[1759997379508,32.32,223.58,223.57,0.67]
[1759997380200,32.32,223.58,223.57,5.14287203]
[1759997380602,32.32,223.58,223.57,0.67]
[1759997381190,32.32,223.58,223.57,5.14287203]
[1759997381398,2.11217628,223.63,223.57,5.14287203]
[1759997381710,32.36,223.62,223.58,5.14250296]
[1759997381895,2.11217628,223.64,223.59,0.67]
[1759997382092,0.5,223.61,223.6,0.67]
[1759997382608,32.86,223.61,223.6,0.67]
[1759997382990,32.34,223.61,223.6,0.67]
[1759997383198,4.47105088,223.67,223.6,0.67]
[1759997383199,11.79687472,223.68,223.61,10.87647521]
[1759997383402,32.34,223.67,223.62,2.78217628]
[1759997383605,32.34,223.67,223.63,0.67]
[1759997383996,32.34,223.67,223.64,4.471472]
[1759997384186,11.79687472,223.68,223.65,0.7]
[1759997384694,32.34,223.67,223.65,0.7]
[1759997385614,11.79687472,223.68,223.66,2.11217628]
[1759997385916,11.79687472,223.68,223.67,5.17087226]
[1759997386692,24.74,223.73,223.68,10.87647521]
[1759997386903,24.74,223.73,223.69,2.81217628]
[1759997386904,32.32,223.73,223.69,2.81217628]
[1759997387301,32.32,223.73,223.7,0.7]
[1759997387498,2.11217628,223.8,223.71,2.11217628]
[1759997387700,34.43217628,223.79,223.71,0.7]
[1759997388105,2.11217628,223.73,223.68,0.7]
[1759997388412,2.11217628,223.71,223.65,5.17127207]
[1759997388620,2.11217628,223.74,223.66,11.57647521]
[1759997388786,2.11217628,223.74,223.67,0.7]
[1759997388993,32.32,223.74,223.68,2.11217628]
[1759997389207,32.32,223.74,223.69,0.7]
[1759997389409,32.32,223.75,223.69,0.7]
[1759997389608,31.96956003,223.83,223.69,0.7]
[1759997389609,12.53192584,223.84,223.72,2.11217628]
[1759997389912,2.11217628,223.79,223.73,0.7]
[1759997390211,32.32,223.78,223.73,5.16949418]
[1759997390416,32.32,223.78,223.73,4.46949418]
[1759997390817,32.32,223.78,223.74,0.7]
[1759997391012,32.32,223.78,223.73,4.46949418]
[1759997391200,32.94,223.78,223.71,5.16991161]
[1759997391406,2.11217628,223.76,223.71,5.16991161]
[1759997391609,2.11217628,223.76,223.72,0.7]
[1759997391915,2.11217628,223.74,223.69,4.47028011]
[1759997392115,2.11217628,223.74,223.66,0.7]
[1759997392116,2.11217628,223.72,223.67,4.47087226]
[1759997392427,2.11217628,223.72,223.67,5.17087226]
[1759997392605,2.73217628,223.72,223.67,4.47087226]
[1759997392796,0.62,223.72,223.65,4.47110276]
[1759997392995,2.11217628,223.7,223.65,4.47110276]
[1759997393520,2.11217628,223.7,223.62,10.87647521]
[1759997393521,2.11217628,223.68,223.62,4.47187192]
[1759997393704,2.11217628,223.66,223.61,5.1720574]
[1759997393910,34.45217628,223.66,223.62,0.7]
[1759997394231,34.45217628,223.66,223.62,5.17170936]
[1759997395312,0.62,223.78,223.66,10.87647521]
[1759997395523,32.4,223.8,223.72,2.11217628]
[1759997395825,2.11217628,223.75,223.68,10.87647521]
[1759997396006,32.42,223.74,223.69,4.47047252]
[1759997396314,32.42,223.74,223.7,0.66]
[1759997397397,32.42,223.74,223.69,4.47047252]
[1759997397597,32.42,223.74,223.66,5.887199]
[1759997397810,32.42,223.74,223.64,22.05487022]
[1759997397811,5.227199,223.71,223.64,11.17839501]
[1759997398025,4.47007286,223.71,223.63,5.13160159]
[1759997398200,5.227199,223.69,223.63,5.13160159]
[1759997398396,32.42,223.68,223.63,5.13160159]
[1759997399528,32.42,223.68,223.63,4.47160159]
[1759997399727,37.647199,223.68,223.63,4.47160159]
[1759997399905,38.267199,223.68,223.63,4.47160159]
[1759997400095,33.04,223.68,223.63,4.47160159]
[1759997400301,42.7379052,223.68,223.61,4.47189558]
[1759997400616,38.267199,223.68,223.61,4.47189558]
[1759997401101,0.62,223.71,223.62,0.66]
[1759997401421,5.227199,223.68,223.61,4.47189558]
[1759997401621,5.227199,223.66,223.59,0.66]
[1759997401926,0.62,223.67,223.59,5.13246003]
[1759997401927,32.4,223.65,223.59,5.13246003]
[1759997402121,5.847199,223.67,223.59,5.13246003]
[1759997402327,32.4,223.66,223.59,5.13246003]
[1759997402621,5.227199,223.67,223.59,16.31363986]
[1759997402811,5.227199,223.67,223.59,5.13246003]
[1759997403011,32.4,223.66,223.59,5.13246003]
[1759997403215,32.4,223.65,223.59,5.13246003]
[1759997403398,5.227199,223.69,223.6,0.66]
[1759997403602,32.4,223.68,223.61,5.227199]
[1759997403811,5.227199,223.65,223.56,10.36017226]
[1759997404015,5.227199,223.63,223.56,4.47297326]
[1759997404212,32.4,223.62,223.56,4.47297326]
[1759997404410,32.4,223.62,223.57,0.66]
[1759997404625,32.4,223.62,223.58,0.66]
[1759997404936,32.42,223.64,223.61,5.227199]
[1759997405133,22.34472943,223.77,223.61,5.227199]
[1759997405134,0.62,223.74,223.64,15.65015202]
[1759997405335,0.62,223.74,223.66,5.227199]
[1759997405522,22.24,223.73,223.66,5.227199]
[1759997406042,5.227199,223.75,223.67,0.66]
[1759997406043,32.44,223.75,223.67,0.66]
[1759997406211,32.44,223.75,223.7,5.227199]
[1759997406412,32.44,223.75,223.71,0.66]
[1759997406836,32.44,223.75,223.68,5.887199]